bitfinex/quotes_SOLUSD_20260217
["timestamp","ask_amount","ask_price","bid_price","bid_amount"]
[1771326807979,0.89938684,85.159,85.138,0.91014854]
[1771326809200,0.89938684,85.158,85.129,0.91014854]
[1771326809377,0.89938684,85.149,85.129,0.91014854]
[1771326809575,11.74274005,85.159,85.128,11.74693023]
[1771326809576,0.89938684,85.154,85.131,0.91014854]
[1771326811700,0.89938684,85.154,85.132,11.74646431]
[1771326812701,0.89938684,85.154,85.132,12.65661285]
[1771326813879,0.89938684,85.154,85.133,0.91014854]
[1771326815903,0.89938684,85.154,85.134,11.74618836]
[1771326816505,0.89938684,85.154,85.134,12.6563369]
[1771326819803,0.89938684,85.154,85.128,29.36754064]
[1771326820194,0.89938684,85.154,85.129,0.91014854]
[1771326822408,0.89938684,85.154,85.13,11.74674027]
[1771326822607,0.89938684,85.154,85.131,0.91014854]
[1771326826014,0.89938684,85.154,85.133,0.89417925]
[1771326827213,0.85382294,85.149,85.122,0.89417925]
[1771326829605,0.85382294,85.129,85.091,0.89417925]
[1771326829813,0.85382294,85.129,85.093,0.89417925]
[1771326830013,0.85382294,85.139,85.101,0.89417925]
[1771326830208,0.85382294,85.145,85.111,0.89417925]
[1771326831620,0.85382294,85.145,85.113,0.88405508]
[1771326832700,0.93038533,85.143,85.113,0.88405508]
[1771326834226,0.93038533,85.143,85.115,0.88405508]
[1771326834607,0.93038533,85.157,85.121,0.88405508]
[1771326835221,0.93038533,85.157,85.131,0.88405508]
[1771326836515,0.73038533,85.159,85.133,0.88405508]
[1771326836724,4.5411314,85.18,85.141,0.88405508]
[1771326838029,4.5411314,85.18,85.143,0.88405508]
[1771326838609,0.47548404,85.179,85.143,0.88405508]
[1771326838810,0.47548404,85.179,85.151,0.88405508]
[1771326840211,0.47548404,85.179,85.153,0.88405508]
[1771326842126,0.47548404,85.179,85.154,11.74342955]
[1771326842312,0.47548404,85.179,85.153,0.88405508]
[1771326842513,0.47456257,85.177,85.154,0.88405508]
[1771326843736,0.47456257,85.177,85.153,11.74347679]
[1771326844415,0.47456257,85.177,85.153,0.88405508]
[1771326847813,0.47231788,85.169,85.141,0.88405508]
[1771326848210,0.47231788,85.169,85.142,0.88405508]
[1771326849129,0.47195866,85.177,85.151,0.88405508]
[1771326849335,0.47195866,85.169,85.142,0.88405508]
[1771326849633,0.47195866,85.159,85.129,0.88405508]
[1771326850335,0.47195866,85.159,85.131,0.88405508]
[1771326850336,0.47160356,85.149,85.131,0.88405508]
[1771326850522,0.47160356,85.149,85.125,12.63142958]
[1771326851331,0.47125255,85.139,85.116,11.74857404]
[1771326851832,0.47125255,85.139,85.116,12.63262912]
[1771326852234,0.47125255,85.139,85.119,0.88405508]
[1771326854628,0.47125255,85.139,85.121,0.88663257]
[1771326855428,0.47125255,85.139,85.116,0.88663257]
[1771326856011,0.46730019,85.138,85.116,0.88663257]
[1771326856817,0.46730019,85.138,85.116,12.63527675]
[1771326857327,0.46650881,85.136,85.116,0.88663257]
[1771326857839,0.46650881,85.136,85.117,11.74853437]
[1771326858334,0.46650881,85.136,85.117,12.63516694]
[1771326858510,16.08660651,85.14,85.117,0.88663257]
[1771326858511,4.3411314,85.14,85.117,0.88663257]
[1771326858716,4.3411314,85.14,85.118,0.88663257]
[1771326859136,0.46496332,85.139,85.118,0.88663257]
[1771326860539,0.46496332,85.139,85.119,0.88663257]
[1771326865243,0.46046417,85.138,85.119,0.88663257]
[1771326868240,11.74577445,85.137,85.119,0.88663257]
[1771326869036,0.45762633,85.137,85.119,12.63487914]
[1771326869448,0.45762633,85.137,85.12,0.88663257]
[1771326869930,4.3411314,85.13,85.112,0.88663257]
[1771326870135,0.45694483,85.129,85.112,0.88663257]
[1771326871255,4.3411314,85.12,85.103,0.88663257]
[1771326871541,0.45694483,85.129,85.103,0.88663257]
[1771326872440,4.3411314,85.13,85.105,0.88663257]
[1771326874219,17.98,85.132,85.105,0.88663257]
[1771326874420,17.98,85.132,85.107,0.88663257]
[1771326877652,0.45239473,85.129,85.109,0.88663257]
[1771326878550,4.3411314,85.13,85.109,0.88663257]
[1771326881744,0.44936,85.128,85.109,0.88663257]
[1771326882927,0.85858954,85.127,85.09,4.3411314]
[1771326883130,0.85858954,85.119,85.085,29.38218256]
[1771326883435,0.85858954,85.109,85.085,29.38218256]
[1771326883946,0.85858954,85.109,85.071,41.14210482]
[1771326884142,0.85858954,85.109,85.08,4.3411314]
[1771326884344,16.08927794,85.12,85.08,4.3411314]
[1771326884647,0.91415066,85.119,85.08,4.3411314]
[1771326884949,0.91415066,85.119,85.082,41.13678567]
[1771326885149,0.91415066,85.119,85.083,0.85846894]
[1771326892263,0.91415066,85.119,85.085,0.84580682]
[1771326893553,0.91415066,85.119,85.087,0.84580682]
[1771326893752,0.91415066,85.119,85.091,0.84580682]
[1771326896471,0.85555469,85.123,85.093,0.84580682]
[1771326899161,0.85555469,85.123,85.095,0.84580682]
[1771326900066,4.3447805,85.13,85.095,0.84580682]
[1771326900273,0.85555469,85.129,85.095,0.84580682]
[1771326900468,0.85555469,85.129,85.1,4.3447805]
[1771326900682,4.3447805,85.14,85.101,0.84580682]
[1771326900885,0.85555469,85.142,85.111,0.84580682]
[1771326901070,0.85555469,85.142,85.113,0.84580682]
[1771326901467,0.85555469,85.159,85.121,0.84580682]
[1771326901668,0.85555469,85.159,85.131,0.84580682]
[1771326901864,4.3447805,85.17,85.131,0.84580682]
[1771326901865,4.3447805,85.17,85.14,4.3447805]
[1771326902191,0.85555469,85.178,85.141,0.84580682]
[1771326902979,0.85555469,85.159,85.131,0.84580682]
[1771326903167,0.85555469,85.159,85.133,0.84580682]
[1771326903373,0.85555469,85.149,85.133,0.84580682]
[1771326904489,0.85555469,85.159,85.133,0.84580682]
[1771326904896,0.85555469,85.158,85.134,11.74618836]
[1771326905191,0.85555469,85.158,85.135,0.84580682]
[1771326906497,0.85555469,85.158,85.13,0.84580682]
[1771326907090,11.7429962,85.158,85.13,0.84580682]
[1771326907298,0.85555469,85.157,85.13,0.84580682]
[1771326909594,17.98,85.17,85.132,0.84580682]
[1771326909797,0.85555469,85.169,85.132,0.84580682]
[1771326910103,108.46086188,85.198,85.131,41.11310802]
[1771326910104,0.85555469,85.174,85.141,0.84580682]
[1771326910407,0.85555469,85.174,85.14,4.3447805]
[1771326910408,1.05555469,85.18,85.151,0.84580682]
[1771326911273,0.85555469,85.178,85.151,0.84580682]
[1771326911689,0.85555469,85.178,85.153,0.84580682]
[1771326912791,11.74025852,85.177,85.153,0.84580682]
[1771326913001,0.85555469,85.176,85.153,0.84580682]
[1771326913694,0.85555469,85.176,85.154,0.84580682]
[1771326914496,0.2,85.18,85.154,0.84580682]
[1771326914691,1.05283708,85.19,85.161,0.80213747]
[1771326915389,0.2,85.19,85.161,0.80213747]
[1771326915906,1.05283708,85.19,85.163,0.80213747]
[1771326916107,0.2,85.19,85.163,0.80213747]
[1771326916293,0.2,85.19,85.171,0.80213747]
[1771326916806,0.85283708,85.206,85.181,0.80213747]
[1771326917110,1.05283708,85.21,85.181,0.80213747]
[1771326918016,1.05283708,85.21,85.183,0.80213747]
[1771326920302,4.3447805,85.21,85.185,0.80213747]
[1771326921213,29.71378391,85.224,85.185,0.80213747]
[1771326921517,4.3447805,85.21,85.185,0.80213747]
[1771326922293,0.54009769,85.209,85.185,0.80213747]
[1771326922894,0.54009769,85.207,85.185,0.80213747]
[1771326925816,0.53298835,85.199,85.17,0.80213747]
[1771326926015,0.53515935,85.189,85.171,11.74108558]
[1771326926225,0.53515935,85.189,85.164,0.80213747]
[1771326927119,0.53515935,85.189,85.164,11.74194571]
[1771326927298,0.53515935,85.189,85.165,0.80213747]
[1771326931305,0.54564718,85.187,85.159,11.74261334]
[1771326931504,0.54564718,85.169,85.132,0.80213747]
[1771326931713,0.54564718,85.159,85.133,0.80213747]
[1771326933000,0.54968396,85.157,85.133,0.80213747]
[1771326933409,0.54968396,85.157,85.134,11.74618836]
[1771326934525,0.55168065,85.155,85.133,0.80213747]
[1771326934714,0.55168065,85.149,85.124,11.74751741]
[1771326934900,0.55168065,85.149,85.124,0.80213747]
[1771326935107,0.55168065,85.149,85.121,0.80213747]
[1771326935733,0.55364419,85.139,85.115,0.80213747]
[1771326935941,0.55558834,85.129,85.103,12.55250447]
[1771326936140,0.55558834,85.129,85.104,0.80213747]
[1771326936727,0.55558834,85.128,85.104,0.80213747]
[1771326937426,0.55558834,85.128,85.106,0.80213747]
[1771326938426,0.55938013,85.127,85.096,0.80213747]
[1771326938635,4.3447805,85.11,85.084,0.80213747]
[1771326939211,0.55938013,85.111,85.084,0.80213747]
[1771326941132,0.55938013,85.111,85.086,0.80213747]
[1771326941607,0.56494589,85.119,85.086,0.80213747]
[1771326941802,11.74825832,85.119,85.086,0.80213747]
[1771326942006,0.56674768,85.118,85.086,0.80213747]
[1771326942733,4.91152818,85.11,85.086,0.80213747]
[1771326943223,0.56854343,85.109,85.087,11.75267667]
[1771326943422,0.56854343,85.109,85.088,0.80213747]
[1771326943823,0.56854343,85.099,85.072,12.55688638]
[1771326944215,0.56854343,85.099,85.072,0.80213747]
[1771326944418,4.3447805,85.09,85.072,0.80213747]
[1771326945433,4.91862404,85.09,85.073,11.75461074]
[1771326946625,0.57384354,85.09,85.073,11.75461074]
[1771326947642,0.577244,85.105,85.074,0.79921296]
[1771326948140,4.92552034,85.1,85.074,0.79921296]
[1771326948316,0.57892125,85.099,85.074,0.79921296]
[1771326952027,0.57892125,85.099,85.076,0.79434547]
[1771326952538,4.34659909,85.11,85.076,0.79434547]
[1771326952733,22.91359689,85.12,85.081,0.79434547]
[1771326953743,22.91359689,85.12,85.082,11.75336733]
[1771326953744,11.74825832,85.119,85.082,11.75336733]
[1771326953933,0.58856283,85.118,85.083,0.79434547]
[1771326955441,0.59163863,85.109,85.083,0.79434547]
[1771326955625,0.59163863,85.114,85.083,0.79434547]
[1771326956024,0.59163863,85.114,85.085,0.79434547]
[1771326956647,4.34659909,85.12,85.085,0.79434547]
[1771326956946,4.34659909,85.12,85.091,0.79434547]
[1771326957245,11.74825832,85.119,85.091,0.79434547]
[1771326958047,0.59613183,85.118,85.091,0.79434547]
[1771326958452,0.59613183,85.118,85.092,11.75198608]
[1771326958644,0.59613183,85.118,85.092,12.54633155]
[1771326958845,4.34659909,85.11,85.092,12.54633155]
[1771326960833,0.59903585,85.109,85.087,0.79434547]
[1771326961232,4.34659909,85.11,85.087,0.79434547]
[1771326961444,4.34659909,85.12,85.087,0.79434547]
[1771326961742,0.60047578,85.127,85.091,0.79434547]
[1771326962944,16.0933432,85.13,85.093,0.79434547]
[1771326963144,16.0933432,85.13,85.092,41.13195129]
[1771326963145,11.74628668,85.134,85.101,0.79434547]
[1771326964048,4.34659909,85.14,85.101,0.79434547]
[1771326965941,0.60730787,85.138,85.103,0.79434547]
[1771326966153,4.34659909,85.13,85.103,0.79434547]
[1771326966739,0.60730787,85.134,85.103,0.79434547]
[1771326967031,0.60863457,85.129,85.102,11.75060515]
[1771326967236,0.60863457,85.129,85.102,12.54495062]
[1771326967459,0.60863457,85.129,85.102,11.75060515]
[1771326967763,4.34659909,85.11,85.084,0.88592889]
[1771326967962,4.34659909,85.11,85.083,29.38295049]
[1771326968269,4.34659909,85.11,85.082,0.88592889]
[1771326969240,16.09616971,85.11,85.082,0.88592889]
[1771326970161,4.34659909,85.1,85.072,0.88592889]
[1771326970461,11.7510194,85.099,85.074,0.88592889]
[1771326971460,4.34659909,85.1,85.074,0.88592889]
[1771326971857,16.09749251,85.1,85.074,0.88592889]
[1771326972936,16.09749251,85.1,85.075,11.75433441]
[1771326973249,0.14923916,85.099,85.063,11.75599261]
[1771326973461,0.14923916,85.089,85.063,11.75599261]
[1771326974158,4.34659909,85.09,85.063,11.75599261]
[1771326974855,17.98,85.106,85.07,4.34659909]
[1771326975055,11.75019094,85.105,85.073,0.84820863]
[1771326975837,17.98,85.106,85.073,0.84820863]
[1771326976540,4.34659909,85.1,85.073,0.84820863]
[1771326976758,0.15415661,85.099,85.073,0.84820863]
[1771326977053,0.15415661,85.099,85.075,0.84820863]
[1771326977556,0.15536334,85.098,85.075,0.84820863]
[1771326977864,11.7510194,85.099,85.075,0.84820863]
[1771326978251,4.34659909,85.1,85.075,0.84820863]
[1771326980764,11.7510194,85.099,85.075,0.84820863]
[1771326981561,0.15999463,85.098,85.075,0.84820863]
[1771326981943,0.15999463,85.098,85.074,11.75447257]
[1771326981944,4.50772102,85.09,85.07,11.75499239]
[1771326982260,0.16112193,85.089,85.07,12.60320102]
[1771326982449,4.34659909,85.09,85.071,0.84820863]
[1771326982972,0.16112193,85.095,85.073,0.84820863]
[1771326983459,11.7510194,85.099,85.073,0.84820863]
[1771326983759,4.34659909,85.1,85.073,0.84820863]
[1771326984865,16.09748842,85.1,85.074,11.75447257]
[1771326985049,16.09748842,85.1,85.075,0.84820863]
[1771326985557,0.16444189,85.099,85.075,0.84820863]
[1771326985757,4.34659909,85.09,85.075,0.84820863]
[1771326986758,0.1655184,85.089,85.063,0.84820863]
[1771326987569,4.34659909,85.08,85.063,0.84820863]
[1771326988059,4.34659909,85.08,85.064,12.60406304]
[1771326988262,4.34659909,85.08,85.051,29.39397297]
[1771326988263,4.51423595,85.07,85.048,0.84820863]
[1771326988563,0.16763686,85.069,85.049,11.75792778]
[1771326988760,0.16763686,85.069,85.04,0.1]
[1771326988761,0.16763686,85.069,85.04,11.85910741]
[1771326988963,5.17632739,85.05,85.03,0.1]
[1771326989167,0.8297283,85.062,85.032,11.76021927]
[1771326989353,0.8297283,85.059,85.032,11.76021927]
[1771326989543,11.75668367,85.058,85.03,0.1]
[1771326989751,0.8297283,85.057,85.03,0.1]
[1771326990371,0.8297283,85.049,85.03,0.1]
[1771326990670,11.75668367,85.058,85.02,0.1]
[1771326990671,0.8297283,85.039,85.02,0.1]
[1771326990876,0.8297283,85.029,85.02,0.1]
[1771326991448,0.8297283,85.039,85.02,0.1]
[1771326992378,0.8297283,85.029,85.02,0.1]
[1771326995047,0.8297283,85.029,85.002,0.84820863]
[1771326995252,4.34659909,85.05,84.99,0.1]
[1771326995253,0.72476615,85.009,84.99,0.1]
[1771326995465,0.62476615,85.009,84.99,0.1]
[1771326995865,4.34659909,85.0,84.98,11.8674252]
[1771326996358,4.34659909,85.0,84.98,0.1]
[1771326997957,4.97425826,85.0,84.98,0.1]
[1771326998465,18.0,85.009,84.981,0.84820863]
[1771326999375,22.34659909,85.02,84.983,0.84820863]
[1771326999581,29.39880227,85.038,85.001,0.84820863]
[1771326999582,18.0,85.028,85.001,0.84820863]
[1771326999758,11.759587,85.037,85.001,0.84820863]
[1771327000075,0.62953289,85.009,84.98,0.1]
[1771327000277,4.34659909,84.99,84.98,0.1]
[1771327000573,4.34659909,84.99,84.972,0.84820863]
[1771327006373,4.34659909,84.98,84.966,0.86124487]
[1771327006575,0.64211833,84.993,84.972,0.86124487]
[1771327006780,4.34659909,84.99,84.972,0.86124487]
[1771327007781,4.34659909,84.99,84.974,0.86124487]
[1771327007970,4.3580918,84.99,84.974,0.86124487]
[1771327009188,4.3580918,84.99,84.975,11.7681671]
[1771327009492,4.3580918,84.99,84.975,12.62941197]
[1771327011383,0.65212445,84.989,84.97,0.98325093]
[1771327012267,4.3580918,84.99,84.97,0.98325093]
[1771327013890,4.3580918,84.99,84.971,0.88325093]
[1771327015591,4.3580918,84.99,84.973,0.88325093]
[1771327016770,0.65371202,84.995,84.973,0.88325093]
[1771327016971,4.3580918,84.99,84.973,0.88325093]
[1771327019573,4.3580918,84.99,84.974,0.88325093]
[1771327020814,4.3580918,85.02,84.981,0.88325093]
[1771327021192,0.66591178,85.024,84.991,0.88325093]
[1771327021487,0.66735035,85.029,84.991,0.88325093]
[1771327021796,0.66735035,85.029,84.993,0.88325093]
[1771327022291,0.66877163,85.027,84.993,0.88325093]
[1771327025082,4.3580918,85.04,85.001,0.88325093]
[1771327025277,0.67292348,85.045,85.011,0.88325093]
[1771327025801,11.75861906,85.044,85.011,0.88325093]
[1771327026996,11.75861906,85.044,85.013,0.88325093]
[1771327028892,0.67693815,85.019,84.972,0.88325093]
[1771327029100,0.67825746,84.989,84.96,0.1]
[1771327029295,0.67825746,84.988,84.96,0.98325093]
[1771327029493,4.3580918,84.98,84.96,0.98325093]
[1771327030284,0.67956177,84.979,84.96,0.1]
[1771327032200,4.3580918,84.98,84.96,0.1]
[1771327033400,0.68335957,84.979,84.96,0.1]
[1771327033605,0.68335957,84.978,84.96,0.1]
[1771327034596,4.3580918,84.97,84.96,0.1]
[1771327036307,0.6839256,84.976,84.96,0.1]
[1771327036507,18.02,84.978,84.961,0.86533623]
[1771327036805,4.3580918,84.98,84.961,0.86533623]
[1771327037508,16.12562606,84.98,84.961,0.86533623]
[1771327037705,5.04287684,84.98,84.96,0.1]
[1771327037904,12.45239821,84.979,84.96,0.1]
[1771327038203,0.68506254,84.978,84.96,0.1]
[1771327038403,0.68506254,84.969,84.95,0.1]
[1771327038789,0.58506254,84.959,84.94,0.1]
[1771327038988,4.3580918,84.95,84.94,0.1]
[1771327039296,0.58541566,84.949,84.923,0.86533623]
[1771327039499,0.58541566,84.949,84.925,0.86533623]
[1771327040313,18.04,84.948,84.925,0.86533623]
[1771327041505,18.04,84.948,84.927,0.86533623]
[1771327045015,0.48789805,84.946,84.921,0.86533623]
[1771327045406,11.77204609,84.947,84.921,0.86533623]
[1771327045595,18.04,84.948,84.921,0.86533623]
[1771327047320,18.04,84.948,84.923,0.86533623]
[1771327048913,4.3580918,84.95,84.923,0.86533623]
[1771327049294,4.3580918,84.95,84.925,0.86533623]
[1771327049625,18.08,84.953,84.925,0.86533623]
[1771327049804,18.08,84.954,84.925,0.86533623]
[1771327050006,4.3580918,84.96,84.925,0.86533623]
[1771327050216,18.08,84.959,84.925,0.86533623]
[1771327051720,18.08,84.959,84.926,41.21234957]
[1771327051901,4.3580918,84.96,84.927,0.86533623]
[1771327053339,4.3580918,84.96,84.929,0.86533623]
[1771327053924,18.06,84.97,84.941,0.86533623]
[1771327054396,22.4180918,84.97,84.941,0.86533623]
[1771327055110,4.3580918,84.97,84.941,0.86533623]
[1771327055312,4.3580918,84.97,84.942,41.20458665]
[1771327055513,0.49166014,84.969,84.943,0.86533623]
[1771327056823,0.49201349,84.968,84.943,0.86533623]
[1771327061822,0.49201349,84.968,84.945,0.86533623]
[1771327062427,4.3580918,84.97,84.932,0.86533623]
[1771327062428,0.49406198,84.966,84.932,0.86533623]
[1771327062602,0.49406198,84.959,84.932,0.86533623]
[1771327063302,18.08,84.958,84.932,0.86533623]
[1771327063510,0.49439109,84.957,84.932,0.86533623]
[1771327064807,0.49502313,84.949,84.926,0.93721691]
[1771327065001,0.49502313,84.949,84.909,0.93721691]
[1771327065324,4.3580918,84.95,84.854,47.13933635]
[1771327065325,4.3580918,84.92,84.895,0.93721691]
[1771327065500,0.49532305,84.919,84.895,0.93721691]
[1771327065705,4.3580918,84.92,84.895,0.93721691]
[1771327066313,22.4380918,84.93,84.895,0.93721691]
[1771327066543,0.49562702,84.929,84.895,0.93721691]
[1771327067718,22.4380918,84.93,84.897,0.93721691]
[1771327067719,0.4959407,84.927,84.897,0.93721691]
[1771327068351,4.36458618,84.98,84.921,0.93721691]
[1771327068511,0.49625083,84.982,84.951,0.93721691]
[1771327068913,16.13214304,84.98,84.951,0.93721691]
[1771327069310,16.62869196,84.98,84.951,0.93721691]
[1771327069517,0.4968297,84.979,84.951,0.93721691]
[1771327069914,0.4968297,84.979,84.952,12.71128843]
[1771327070112,0.4971072,84.987,84.953,0.9399352]
[1771327071413,18.06,84.999,84.961,0.9399352]
[1771327071615,0.4973779,85.015,84.981,0.9399352]
[1771327071828,0.4973779,85.015,84.98,4.36458618]
[1771327071829,11.76227275,85.018,84.983,0.9399352]
[1771327072217,0.4976666,85.017,84.983,0.9399352]
[1771327072730,0.4976666,85.009,84.982,11.76719775]
[1771327073511,0.4976666,85.009,84.983,0.9399352]
[1771327073717,0.49794338,84.989,84.941,0.9399352]
[1771327073918,4.36458618,84.97,84.943,0.9399352]
[1771327075725,11.76813178,84.976,84.943,0.9399352]
[1771327075926,11.76813178,84.976,84.942,11.77273904]
[1771327075927,11.76813178,84.976,84.945,0.9399352]
[1771327077052,0.49901344,84.975,84.947,0.9399352]
[1771327077254,11.76813178,84.976,84.931,0.9399352]
[1771327077255,10.89873987,84.97,84.931,0.9399352]
[1771327077539,11.76813178,84.976,84.941,0.9399352]
[1771327078527,11.76813178,84.976,84.94,10.89873987]
[1771327078528,11.76813178,84.976,84.943,0.9399352]
[1771327080854,0.49977553,84.969,84.945,0.9399352]
[1771327081237,22.66628152,84.98,84.945,0.9399352]
[1771327081435,18.06,84.979,84.945,0.9399352]
[1771327081636,18.06,84.979,84.961,0.9399352]
[1771327081941,11.76554661,84.994,84.961,0.9399352]
[1771327082925,11.76554661,84.994,84.963,0.9399352]
[1771327083641,18.08,85.008,84.971,0.9399352]
[1771327084942,0.5005323,85.01,84.973,0.9399352]
[1771327085134,0.5005323,85.01,84.981,0.9399352]
[1771327088247,0.5005323,85.01,84.982,11.76719775]
[1771327088423,0.5005323,85.01,84.983,0.9399352]
[1771327089328,0.50191869,85.025,84.99,10.89873987]
[1771327089536,0.50191869,85.025,84.991,0.9399352]
[1771327090054,18.08,85.031,85.001,0.9399352]
[1771327090229,0.50215434,85.031,85.001,0.9399352]
[1771327090427,12.26284775,85.029,85.001,0.9399352]
[1771327090647,12.26284775,85.029,85.002,0.9399352]
[1771327090932,0.50215434,85.028,85.002,0.9399352]
[1771327092049,11.76097004,85.027,85.002,0.9399352]
[1771327092737,0.50260666,85.026,85.002,0.9399352]
[1771327093632,0.50283528,85.019,84.988,0.9399352]
[1771327094742,0.50326472,85.009,84.982,0.86519855]
[1771327096545,0.50367415,85.016,84.984,0.86519855]
[1771327096745,18.1,85.015,84.984,0.86519855]
[1771327096947,0.50367415,85.014,84.984,0.86519855]
[1771327097947,0.50407316,85.012,84.985,11.76678237]
[1771327098140,0.50407316,85.012,84.985,12.63198092]
[1771327099664,0.50407316,85.012,84.986,0.86519855]
[1771327101059,0.50407316,85.012,84.987,11.76650546]
[1771327101247,11.76285249,85.014,84.988,0.86519855]
[1771327101761,0.50468456,85.013,84.987,11.76650546]
[1771327102564,4.35581344,85.01,84.984,0.86519855]
[1771327102768,0.50489396,85.009,84.984,0.86519855]
[1771327104554,0.50489396,85.009,84.985,11.76678237]
[1771327104755,0.50489396,85.009,84.986,0.86519855]
[1771327107048,0.50581984,85.007,84.986,0.86519855]
[1771327107266,0.50581984,85.007,84.974,27.32198138]
[1771327108262,0.50581984,85.007,84.98,4.35581344]
[1771327109052,0.50581984,85.007,84.981,11.76733622]
[1771327109257,0.50581984,85.007,84.982,0.86519855]
[1771327111070,0.50581984,85.007,84.984,0.86519855]
[1771327112166,0.50581984,85.007,84.985,12.63198092]
[1771327112364,0.50581984,85.007,84.986,0.86519855]
[1771327116276,0.50581984,85.007,84.987,12.63170401]
[1771327116485,0.50581984,85.007,84.988,0.86519855]
[1771327116684,18.12,85.018,84.988,0.86519855]
[1771327116852,0.85845476,85.017,84.988,0.86519855]
[1771327117051,0.85845476,85.015,84.988,0.86519855]
[1771327118260,18.99845476,85.015,84.988,0.86519855]
[1771327118462,0.85845476,85.013,84.988,0.86519855]
[1771327119160,0.85845476,85.013,84.99,0.86519855]
[1771327120257,0.85845476,84.999,84.947,4.61729252]
[1771327120467,0.85845476,84.969,84.942,0.86519855]
[1771327120661,5.36086188,84.996,84.942,0.86519855]
[1771327120662,4.35581344,84.96,84.942,0.86519855]
[1771327120968,0.85845476,84.964,84.942,0.86519855]
[1771327121149,0.85845476,84.959,84.934,0.86519855]
[1771327122257,0.85845476,84.949,84.921,0.86519855]
[1771327122578,0.85845476,84.939,84.911,0.86519855]
[1771327122877,0.85845476,84.938,84.911,0.86519855]
[1771327124159,0.86471569,84.937,84.911,0.86519855]
[1771327125273,18.14,84.939,84.913,0.89935596]
[1771327125885,0.86471569,84.938,84.913,0.89935596]
[1771327126770,0.86471569,84.938,84.915,0.89935596]
[1771327127378,4.35581344,84.94,84.915,0.89935596]
[1771327127956,4.36308765,84.94,84.915,0.89935596]
[1771327129267,18.16,84.941,84.917,0.89935596]
[1771327129474,0.86471569,84.941,84.917,0.89935596]
[1771327130458,0.86471569,84.941,84.903,29.44527881]
[1771327130459,0.86471569,84.941,84.919,0.89935596]
[1771327130778,4.36308765,84.94,84.919,0.89935596]
[1771327132575,4.36308765,84.94,84.921,0.88616948]
[1771327132783,18.16,84.945,84.921,0.88616948]
[1771327133483,0.90729651,84.967,84.921,0.88616948]
[1771327133670,18.16,84.966,84.921,0.88616948]
[1771327133870,4.36308765,84.96,84.921,0.88616948]
[1771327134570,4.36308765,84.96,84.923,0.88616948]
[1771327135184,18.16,84.966,84.923,0.88616948]
[1771327135684,18.16,84.966,84.931,0.88616948]
[1771327136780,19.06729651,84.966,84.933,0.88616948]
[1771327137882,4.88977379,85.0,84.935,0.88616948]
[1771327138084,0.90729651,85.008,84.971,0.88616948]
[1771327138474,0.90729651,84.999,84.971,0.88616948]
[1771327138786,0.90729651,84.979,84.951,0.88616948]
[1771327139083,0.90729651,84.989,84.951,0.88616948]
[1771327139984,0.90729651,84.987,84.953,0.88616948]
[1771327140981,0.90729651,84.985,84.955,0.88616948]
[1771327141586,4.36308765,84.98,84.955,0.88616948]
[1771327141784,4.36308765,84.99,84.955,0.88616948]
[1771327142092,0.90729651,85.007,84.961,0.88616948]
[1771327142279,0.90729651,85.007,84.971,0.88616948]
[1771327142598,0.90729651,84.999,84.971,0.88616948]
[1771327143696,0.90729651,84.999,84.972,11.76858259]
[1771327144792,0.90729651,84.999,84.973,0.88616948]
[1771327146980,0.90729651,84.999,84.975,0.88616948]
[1771327151096,0.90729651,85.015,84.981,0.88616948]
[1771327151390,11.76138781,85.024,84.991,0.88616948]
[1771327152298,11.76083172,85.028,84.992,11.76581325]
[1771327152596,0.90729651,85.027,84.993,0.88616948]
[1771327155197,4.36308765,85.03,84.995,0.95052713]
[1771327155401,5.26630243,85.03,84.995,0.95052713]
[1771327155700,0.90321478,85.029,84.995,0.95052713]
[1771327155908,4.36308765,85.03,84.995,0.95052713]
[1771327156099,18.14,85.032,85.001,0.95052713]
[1771327156395,0.90321478,85.035,85.001,0.95052713]
[1771327156581,0.90321478,85.029,85.001,0.95052713]
[1771327157189,0.90321478,85.029,85.003,0.95052713]
[1771327158398,0.90321478,85.038,85.003,0.95052713]
[1771327158604,22.70308765,85.04,85.003,0.95052713]
[1771327159300,23.60630243,85.04,85.005,0.95052713]
[1771327159903,5.46630243,85.04,85.005,0.95052713]
[1771327160203,0.90321478,85.038,85.005,0.95052713]
[1771327163509,0.90321478,85.038,85.007,0.95052713]
[1771327163695,4.56308765,85.04,85.007,0.95052713]
[1771327163890,0.2,85.04,85.011,0.95052713]
[1771327165499,0.2,85.04,85.013,0.95052713]
[1771327167305,0.2,85.04,85.015,0.95052713]
[1771327167891,0.90321478,85.039,85.015,0.95052713]
[1771327169610,0.90321478,85.039,85.016,11.76249176]
[1771327169810,0.90321478,85.039,85.017,0.95052713]
[1771327171720,0.2,85.04,85.019,0.95052713]
[1771327177017,0.2,85.04,85.021,0.95052713]
[1771327179316,0.2,85.04,85.023,0.95052713]
[1771327181303,0.2,85.04,85.023,0.08722265]
[1771327185420,1.16157377,85.04,85.023,0.08722265]
[1771327185627,0.96157377,85.029,85.011,11.76318358]
[1771327186415,0.96157377,85.029,85.011,12.6996519]